[Event "Satka Autumn 2018"]
[Site "Satka"]
[Date "2018.09.14"]
[Round "4"]
[White "Kovanova, Baira"]
[Black "Matsenko, Elena"]
[Result "1-0"]
[ECO "A06"]
[WhiteElo "2363"]
[BlackElo "1854"]
[Annotator "NA"]
[PlyCount "109"]
[EventDate "2018.09.11"]
[EventType "swiss"]
[EventCountry "RUS"]
[SourceTitle "playchess.com"]
[Source "ChessBase"]
[SourceQuality "1"]
[TimeControl "40/5400+30:1800+30"]

1. Nf3 {[%emt 0:00:00]} d5 {[%emt 0:00:00]} 2. g3 {[%emt 0:00:00]} c6 {[%emt 0:00:00]} 3. Bg2 {[%emt 0:00:00]} Bf5 {[%emt 0:00:00]} 4. d3 {[%emt 0:00:24]} Nf6 {[%emt 0:00:15]} 5. O-O {[%emt 0:00:19]} e6 {[%emt 0:00:05]} 6. b3 {[%emt 0:01:44]} h6 {[%emt 0:00:14]} 7. Bb2 {[%emt 0:00:17]} Be7 {[%emt 0:00:07]} 8. Nbd2 {[%emt 0:00:57]} O-O {[%emt 0:00:12]} 9. c4 {[%emt 0:00:44]} Nbd7 {[%emt 0:00:59]} 10. Qc2 {[%emt 0:05:37]} a5 {[%emt 0:02:47]} 11. a3 {[%emt 0:00:56] LiveBook: 174 Partien} Qc7 {[%emt 0:03:14] A12: English Opening: 1...c6 with b3 by White} 12. cxd5 {[%emt 0:07:16]} exd5 {[%emt 0:02:02]} 13. Rfe1 {[%emt 0:01:32]} Bh7 {[%emt 0:06:26]} 14. e4 {[%emt 0:01:12]} dxe4 {[%emt 0:00:10]} 15. dxe4 {[%emt 0:00:35]} Rfe8 {[%emt 0:04:02] [#]} 16. Nd4 $146 {[%emt 0:04:49]} ({Predecessor:} 16. Qc3 Bf8 17. Nd4 Nc5 18. f3 Rad8 19. Rad1 {1-0 (29) Drasko,M (2521)-Reinhart,E (2266) Paris 2006}) 16... Bc5 {[%emt 0:12:08]} 17. Bc3 {[%emt 0:18:20]} Ne5 {[%emt 0:08:15]} 18. b4 {[%emt 0:04:13]} axb4 {[%emt 0:00:25]} 19. axb4 {[%emt 0:00:01]} Rxa1 {[%emt 0:01:08]} 20. Rxa1 {[%emt 0:00:12]} Bb6 {[%emt 0:03:29]} 21. N2b3 {[%emt 0:03:40]} Qd6 {[%emt 0:07:08]} 22. Rd1 {[%emt 0:06:00]} (22. Nc5 $5) 22... Rd8 {[%emt 0:05:45]} 23. f4 {[%emt 0:06:07]} Ned7 {[%emt 0:12:42]} 24. Kh1 {[%emt 0:07:14]} Qe7 {[%emt 0:02:34]} 25. f5 {[%emt 0:05:17]} Ne5 {[%emt 0:04:40]} 26. Qe2 {[%emt 0:01:16]} h5 {[%emt 0:02:09]} 27. Rf1 {[%emt 0:01:55]} Qd6 {[%emt 0:03:43]} 28. Qd2 {[%emt 0:11:41]} Qe7 {[%emt 0:05:15]} 29. Qg5 {[%emt 0:00:58]} Rd7 {[%emt 0:02:11]} 30. Ra1 {[%emt 0:07:10]} Rd8 {[%emt 0:00:48]} 31. Rf1 {[%emt 0:00:41]} Rd7 {[%emt 0:00:08]} 32. Ra1 {[%emt 0:00:17]} Rd8 {[%emt 0:00:06]} 33. h3 {[%emt 0:01:58]} Qd6 {[%emt 0:02:50]} 34. Rf1 {[%emt 0:00:35]} Qe7 {[%emt 0:01:00]} 35. Qh4 {[%emt 0:01:37]} Rd7 {[%emt 0:00:52]} 36. Ra1 {[%emt 0:00:37]} Rd8 {[%emt 0:01:11]} 37. Rf1 {[%emt 0:00:39]} Rd7 {[%emt 0:00:08]} 38. Ra1 {[%emt 0:00:07]} Rd8 {[%emt 0:00:05]} 39. Qg5 {[%emt 0:00:53]} Qd6 {[%emt 0:00:27]} 40. Qf4 {[%emt 0:00:00]} Qe7 {[%emt 0:00:00]} 41. Rf1 {[%emt 0:07:39]} Nd3 {[%emt 0:06:57]} 42. Qd2 {[%emt 0:04:40]} Ne5 {[%emt 0:00:17]} 43. Ba1 {[%emt 0:01:01]} Bc7 {[%emt 0:05:32]} 44. Qc3 {[%emt 0:03:37]} Bd6 $11 {[%emt 0:03:31]} 45. Nc5 {[%emt 0:01:03]} Bb8 {[%emt 0:05:00]} 46. Nf3 {[%emt 0:02:22]} Nxf3 {[%emt 0:01:48]} 47. Bxf3 {[%emt 0:00:14]} Bxg3 {[%emt 0:06:37]} 48. e5 {[%emt 0:00:53]} Ne8 {[%emt 0:01:28]} 49. Bxh5 {[%emt 0:01:22]} Qh4 {[%emt 0:03:56]} 50. Bg4 {[%emt 0:00:05]} Rd5 {[%emt 0:00:32]} 51. Qe3 {[%emt 0:01:21]} f6 {[%emt 0:02:36]} 52. exf6 {[%emt 0:00:36]} Nxf6 {[%emt 0:00:02]} 53. Bxf6 {[%emt 0:00:00]} gxf6 {[%emt 0:00:06]} 54. Qe8+ {[%emt 0:00:02]} Kg7 {[%emt 0:00:18]} 55. Ne6+ {[%emt 0:00:05]} 1-0

[Event "Satka Autumn 2018"]
[Site "Satka"]
[Date "2018.09.14"]
[Round "4"]
[White "Makarenko, Alexandra"]
[Black "Mikheeva, Galina"]
[Result "1-0"]
[ECO "C61"]
[WhiteElo "2247"]
[BlackElo "1767"]
[Annotator "NA"]
[PlyCount "135"]
[EventDate "2018.09.11"]
[EventType "swiss"]
[EventCountry "RUS"]
[SourceTitle "playchess.com"]
[Source "ChessBase"]
[SourceQuality "1"]
[TimeControl "40/5400+30:1800+30"]

1. e4 {[%emt 0:00:00]} e5 {[%emt 0:00:00]} 2. Nf3 {[%emt 0:00:00]} Nc6 {[%emt 0:00:00]} 3. Bb5 {[%emt 0:00:00]} Nd4 {[%emt 0:00:22]} 4. Nxd4 {[%emt 0:00:00]} exd4 {[%emt 0:00:06]} 5. Bc4 {[%emt 0:00:01]} h5 {[%emt 0:00:40]} 6. d3 {[%emt 0:00:40] C61: Spanische Partie (Bird-Verteidigung)} Bc5 {[%emt 0:01:09] LiveBook: 11 Games} 7. Qf3 {[%emt 0:01:25]} Qf6 {[%emt 0:04:23]} 8. Nd2 {[%emt 0:04:22]} d6 $146 {[%emt 0:03:17]} ({Vorgänger:} 8... c6 9. a3 Ne7 10. b4 Bb6 11. Bb2 d5 12. Qxf6 gxf6 13. exd5 cxd5 {1-0 (47) Boruchovsky,A (2558)-Gurbanov,A (2335) Jerusalem 2018}) 9. O-O {[%emt 0:03:14]} Bg4 {[%emt 0:06:12]} 10. Qxf6 {[%emt 0:04:22]} Nxf6 {[%emt 0:00:09]} 11. f4 {[%emt 0:02:51]} Be6 {[%emt 0:18:23]} 12. Bxe6 {[%emt 0:05:57]} fxe6 {[%emt 0:00:09]} 13. Nb3 {[%emt 0:02:17]} Bb6 {[%emt 0:05:56]} 14. h3 {[%emt 0:03:57]} O-O {[%emt 0:04:58]} 15. Bd2 {[%emt 0:01:31]} Rac8 {[%emt 0:02:46]} 16. a4 {[%emt 0:05:01]} a6 {[%emt 0:01:24]} 17. Rae1 {[%emt 0:12:21]} Nd7 {[%emt 0:06:03]} 18. Re2 {[%emt 0:18:16]} c5 {[%emt 0:07:40]} 19. Na5 {[%emt 0:00:50]} Bxa5 {[%emt 0:01:12]} 20. Bxa5 {[%emt 0:00:05]} b6 {[%emt 0:05:24]} 21. Be1 {[%emt 0:02:15]} Rc6 {[%emt 0:04:11]} 22. Bh4 {[%emt 0:10:51]} e5 {[%emt 0:10:38]} 23. f5 {[%emt 0:00:43]} Kf7 {[%emt 0:02:25]} 24. b3 {[%emt 0:02:03]} Nf6 {[%emt 0:03:22]} 25. Kh2 {[%emt 0:01:51]} Rc7 {[%emt 0:02:56]} 26. Ra1 {[%emt 0:04:03]} Ra8 {[%emt 0:02:00]} 27. Kg3 {[%emt 0:00:41]} Rca7 {[%emt 0:01:38]} 28. Kf3 {[%emt 0:00:37]} Rh8 {[%emt 0:02:50]} 29. Rh1 {[%emt 0:04:23]} b5 {[%emt 0:01:07]} 30. a5 {[%emt 0:01:15]} Raa8 {[%emt 0:02:16]} 31. Ree1 {[%emt 0:00:21]} Rh7 {[%emt 0:01:12]} 32. Rhg1 {[%emt 0:03:11]} Rhh8 {[%emt 0:00:34]} 33. g3 {[%emt 0:00:58]} Rab8 {[%emt 0:00:24]} 34. Bg5 {[%emt 0:02:41]} Rbc8 {[%emt 0:00:37]} 35. Rb1 {[%emt 0:01:04]} Rc7 {[%emt 0:00:31]} 36. Rge1 {[%emt 0:00:54]} b4 {[%emt 0:00:28]} 37. Rh1 {[%emt 0:00:30]} Rcc8 {[%emt 0:00:30]} 38. g4 {[%emt 0:00:36]} Rb8 {[%emt 0:00:36]} 39. Bd2 {[%emt 0:01:27]} Rb5 {[%emt 0:00:26]} 40. g5 {[%emt 0:00:00]} Nd7 {[%emt 0:00:00]} 41. g6+ {[%emt 0:04:05]} Ke7 {[%emt 0:03:16]} 42. Bg5+ {[%emt 0:00:46]} Ke8 {[%emt 0:05:55]} 43. Ra1 {[%emt 0:00:08]} Rb7 {[%emt 0:02:30]} 44. Kg3 {[%emt 0:01:47]} Rb5 {[%emt 0:00:29]} 45. Kh4 {[%emt 0:00:36]} Rb7 {[%emt 0:04:18]} 46. Rhg1 {[%emt 0:01:52]} Kf8 {[%emt 0:02:01]} 47. Rg2 {[%emt 0:00:49]} Nf6 {[%emt 0:03:36]} 48. Rag1 {[%emt 0:00:28]} Kg8 {[%emt 0:00:49]} 49. Rg3 {[%emt 0:02:11]} Rc7 {[%emt 0:00:21]} 50. Bxf6 {[%emt 0:14:30]} gxf6 {[%emt 0:00:05]} 51. Rg5 {[%emt 0:01:53]} Kg7 $2 {[%emt 0:04:00]} (51... fxg5+ $11 52. Kxg5 h4) 52. Rxh5 $18 {[%emt 0:00:24]} Rxh5+ {[%emt 0:00:44]} 53. Kxh5 {[%emt 0:00:01]} Rc8 {[%emt 0:00:46]} 54. Kg4 {[%emt 0:01:58]} Rh8 {[%emt 0:00:29]} 55. Kg3 {[%emt 0:01:07]} Rh5 {[%emt 0:01:20]} 56. Kh2 {[%emt 0:00:30]} d5 {[%emt 0:01:40]} 57. exd5 {[%emt 0:00:20]} Rxf5 {[%emt 0:00:12]} 58. d6 {[%emt 0:00:08]} Rh5 {[%emt 0:00:13]} 59. Rg4 {[%emt 0:03:45]} Rh8 {[%emt 0:00:32]} 60. h4 {[%emt 0:00:29]} f5 {[%emt 0:02:30]} 61. Rg5 {[%emt 0:00:03]} Rxh4+ {[%emt 0:01:27]} 62. Kg3 {[%emt 0:00:13]} Rh8 {[%emt 0:02:40]} 63. Rxf5 {[%emt 0:00:06]} Kxg6 {[%emt 0:00:10]} 64. Rxe5 {[%emt 0:00:04]} Rd8 {[%emt 0:00:23]} 65. Rxc5 {[%emt 0:00:37]} Rxd6 {[%emt 0:00:04]} 66. Kf4 {[%emt 0:00:53]} Kf6 {[%emt 0:01:19]} 67. Rc4 {[%emt 0:01:27]} Ke6 {[%emt 0:01:11]} 68. Ke4 {[%emt 0:00:21] Ke5+} 1-0

[Event "Satka Autumn 2018"]
[Site "Satka"]
[Date "2018.09.14"]
[Round "4"]
[White "Schepetkova, Margarita"]
[Black "Semenova, Elena"]
[Result "1/2-1/2"]
[ECO "D26"]
[WhiteElo "2238"]
[BlackElo "2219"]
[Annotator "NA"]
[PlyCount "149"]
[EventDate "2018.09.11"]
[EventType "swiss"]
[EventCountry "RUS"]
[SourceTitle "playchess.com"]
[Source "ChessBase"]
[SourceQuality "1"]
[TimeControl "40/5400+30:1800+30"]

1. d4 {[%emt 0:00:00]} d5 {[%emt 0:00:00]} 2. c4 {[%emt 0:00:00]} dxc4 {[%emt 0:00:00]} 3. e3 {[%emt 0:00:00]} Nf6 {[%emt 0:00:42]} 4. Bxc4 {[%emt 0:00:38]} e6 {[%emt 0:00:20]} 5. Nf3 {[%emt 0:00:07]} c5 {[%emt 0:00:32]} 6. O-O {[%emt 0:00:35]} cxd4 {[%emt 0:00:37]} 7. exd4 {[%emt 0:01:34]} Be7 {[%emt 0:00:39]} 8. Nc3 {[%emt 0:00:23]} O-O {[%emt 0:01:21]} 9. Bg5 {[%emt 0:04:31]} Nc6 {[%emt 0:06:39]} 10. Qd2 {[%emt 0:00:57] LiveBook: 24 Games} a6 {[%emt 0:03:02]} 11. Rad1 {[%emt 0:02:38]} b5 {[%emt 0:11:32]} 12. Bd3 {[%emt 0:01:15]} Nb4 {[%emt 0:02:53] D27: Angenommenes Damengambit (Hauptvariante 7.e4, 7.a4)} 13. Bb1 {[%emt 0:00:23]} Bb7 {[%emt 0:01:27]} 14. Qf4 {[%emt 0:09:42]} Nbd5 $146 {[%emt 0:14:28]} ({Vorgänger:} 14... g6 15. Bxf6 Bxf6 16. Be4 Bxe4 17. Qxe4 Rc8 18. Ne5 Nd5 19. Nxd5 exd5 20. Qd3 {½-½ (33) Cramling,P (2492)-Zambrana,O (2409) Las Palmas 2005}) 15. Qh4 {[%emt 0:03:27]} g6 {[%emt 0:00:43]} 16. Nxd5 {[%emt 0:02:36]} Nxd5 {[%emt 0:06:41]} 17. Bxe7 {[%emt 0:04:23]} Qxe7 {[%emt 0:01:10]} 18. Ng5 {[%emt 0:01:33]} h5 {[%emt 0:06:54]} 19. Rfe1 {[%emt 0:00:24]} Qf6 {[%emt 0:02:24]} 20. Qg3 {[%emt 0:04:43]} Qf4 {[%emt 0:01:37]} 21. Ne4 {[%emt 0:00:16]} Qxg3 {[%emt 0:00:10]} 22. hxg3 {[%emt 0:00:03]} Ne7 {[%emt 0:01:32]} 23. Nc5 {[%emt 0:02:15]} Bd5 {[%emt 0:06:16]} 24. Rc1 {[%emt 0:00:12]} Rfd8 {[%emt 0:01:15]} 25. Red1 {[%emt 0:03:24]} a5 {[%emt 0:04:37]} 26. Bd3 {[%emt 0:03:26]} Bc6 {[%emt 0:02:52]} 27. Be2 {[%emt 0:01:29]} Rd6 {[%emt 0:00:25]} 28. Bf3 {[%emt 0:01:39]} Bxf3 {[%emt 0:01:59]} 29. gxf3 {[%emt 0:00:02]} Rc8 {[%emt 0:05:09]} 30. Nb7 {[%emt 0:03:35]} ({White should play} 30. a3 $15) 30... Rxc1 {[%emt 0:00:49]} 31. Rxc1 {[%emt 0:00:04]} Rxd4 {[%emt 0:00:34]} 32. Rc5 {[%emt 0:01:49]} Rb4 {[%emt 0:01:51]} 33. b3 {[%emt 0:00:12]} a4 {[%emt 0:00:57]} 34. bxa4 {[%emt 0:00:36]} bxa4 {[%emt 0:04:19]} 35. Rc7 {[%emt 0:00:04]} Nd5 {[%emt 0:00:13]} 36. Rc8+ {[%emt 0:05:44]} Kg7 {[%emt 0:00:04]} 37. Nc5 {[%emt 0:00:07]} Rb1+ {[%emt 0:00:31]} 38. Kg2 {[%emt 0:00:08]} Rb2 {[%emt 0:00:24]} 39. a3 {[%emt 0:00:38]} Ra2 {[%emt 0:06:47]} 40. Nxa4 {[%emt 0:00:00]} Rxa3 {[%emt 0:00:00]} 41. Nb2 {[%emt 0:00:39]} Rb3 {[%emt 0:05:42]} 42. Rc2 {[%emt 0:00:05]} g5 {[%emt 0:03:32]} 43. Rd2 {[%emt 0:00:19]} Rb4 {[%emt 0:04:05]} 44. Re2 {[%emt 0:01:23]} Rd4 {[%emt 0:00:20]} 45. Re4 {[%emt 0:01:23]} Rxe4 {[%emt 0:06:00]} 46. fxe4 {[%emt 0:00:54]} Nc3 {[%emt 0:00:00]} 47. Kf3 {[%emt 0:01:44]} Kf6 {[%emt 0:01:53]} 48. Nd3 {[%emt 0:00:48]} Nb5 {[%emt 0:01:46]} 49. Ke3 {[%emt 0:01:10]} Na7 {[%emt 0:00:25]} 50. Nb4 {[%emt 0:03:47]} Nc8 {[%emt 0:01:14]} 51. f4 {[%emt 0:02:24]} Ne7 {[%emt 0:00:57]} 52. fxg5+ {[%emt 0:02:13]} Kxg5 {[%emt 0:00:05]} 53. Kf3 {[%emt 0:00:07]} Ng6 {[%emt 0:01:30]} 54. Nc6 {[%emt 0:00:14]} Kf6 {[%emt 0:00:22]} 55. Nb8 {[%emt 0:02:20]} Ke5 {[%emt 0:01:05]} 56. Nd7+ {[%emt 0:00:58]} Kd4 {[%emt 0:01:35]} 57. Nf6 {[%emt 0:00:22]} h4 {[%emt 0:00:37]} 58. gxh4 {[%emt 0:00:09]} Nxh4+ {[%emt 0:00:22]} 59. Kf4 {[%emt 0:00:46]} Ng6+ {[%emt 0:03:47]} 60. Kf3 {[%emt 0:01:33]} Ne5+ {[%emt 0:00:05]} 61. Kf4 {[%emt 0:00:11]} Nd3+ {[%emt 0:00:17]} 62. Kf3 {[%emt 0:00:32]} Nc5 {[%emt 0:02:45]} 63. Kf4 {[%emt 0:01:11]} Nd3+ {[%emt 0:01:27]} 64. Kf3 {[%emt 0:00:06]} Ne1+ {[%emt 0:00:51]} 65. Kf4 {[%emt 0:02:07]} Ng2+ {[%emt 0:01:40]} 66. Kf3 {[%emt 0:00:47]} Nh4+ $11 {[%emt 0:00:15]} 67. Kf4 {[%emt 0:00:09]} Ng6+ {[%emt 0:02:25]} 68. Kf3 {[%emt 0:00:04]} e5 {[%emt 0:01:16]} 69. Kg4 {[%emt 0:03:39]} Nf4 {[%emt 0:00:21]} 70. Kf5 {[%emt 0:00:25]} Ne2 {[%emt 0:00:26]} 71. Ng4 {[%emt 0:01:18]} Ng3+ {[%emt 0:00:53]} 72. Kf6 {[%emt 0:00:09]} Nxe4+ {[%emt 0:00:27]} 73. Kxf7 {[%emt 0:00:07]} Ng5+ {[%emt 0:00:14]} 74. Kg6 {[%emt 0:00:19]} Nf3 {[%emt 0:00:10]} 75. Nxe5 {[%emt 0:00:05]} 1/2-1/2

[Event "Satka Autumn 2018"]
[Site "Satka"]
[Date "2018.09.14"]
[Round "4"]
[White "Smirnova, Ekaterina"]
[Black "Voit, Daria"]
[Result "1/2-1/2"]
[ECO "E29"]
[WhiteElo "2202"]
[BlackElo "2369"]
[Annotator "NA"]
[PlyCount "124"]
[EventDate "2018.09.11"]
[EventType "swiss"]
[EventCountry "RUS"]
[SourceTitle "playchess.com"]
[Source "ChessBase"]
[SourceQuality "1"]
[TimeControl "40/5400+30:1800+30"]

{[%evp 8,78,3,-5,-2,-10,-9,-16,1,-7,-8,0,-9,-20,0,-51,-15,2,0,0,-4,-11,-6,-13,-13,-3,0,0,0,0,231,268,239,-28,-20,-45,-54,-50,-58,-52,-37,-42,-34,-43,0,0,28,11,184,10,26,24,25,32767,32767,32767,32767,32767,32767,32767,32767,0,0,0,0,32767,32767,0,0,32767,15,8,20]} 1. d4 {[%emt 0:00:01]} Nf6 {[%emt 0:00:00]} 2. c4 {[%emt 0:00:00]} e6 {[%emt 0:00:00]} 3. Nc3 {[%emt 0:00:00]} Bb4 {[%emt 0:00:00]} 4. a3 {[%emt 0:00:00]} Bxc3+ $1 {[%emt 0:00:00]} 5. bxc3 {[%emt 0:00:00]} c5 {[%emt 0:00:12]} 6. e3 {[%emt 0:00:00]} Nc6 {[%emt 0:01:34]} 7. Bd3 {[%emt 0:00:17]} O-O {[%emt 0:00:35]} 8. Ne2 {[%emt 0:00:07]} b6 {[%emt 0:00:05]} 9. e4 {[%emt 0:02:30]} Ne8 {[%emt 0:00:10]} 10. O-O {[%emt 0:00:15]} Ba6 {[%emt 0:00:08]} 11. f4 {[%emt 0:01:18]} f5 {[%emt 0:00:07]} 12. exf5 {[%emt 0:02:55] E29: Nimzo-Indian: Sämisch: 5...0-0 6 e3 c5 7 Bd3 Nc6} (12. e5 d6 13. d5 exd5 14. cxd5 Bxd3 15. Qxd3 dxe5 16. Qd2 Ne7 17. Rd1 Ng6 18. fxe5 Nxe5 19. Nf4 Rf7 {0-1 (57) Carlsen,M (2693)-Aronian,L (2759) Elista 2007}) 12... exf5 {[%emt 0:00:03]} 13. dxc5 {[%emt 0:00:17]} bxc5 {[%emt 0:01:37]} 14. Ng3 {[%emt 0:00:05]} g6 {[%emt 0:01:10]} 15. Be3 {[%emt 0:00:04] LiveBook: 24 Partien} Qa5 {[%emt 0:02:04]} 16. Be2 {[%emt 0:15:45]} Nf6 {[%emt 0:00:29]} 17. Qd6 {[%emt 0:01:15]} Rfe8 {[%emt 0:08:24]} 18. Qxf6 {[%emt 0:09:45] [#]} Re6 $2 $146 {[%emt 0:13:05] [#]} (18... Rxe3 $11 {and Black has nothing to worry.} 19. Nxf5 gxf5 20. Qg5+ Kh8 {½-½ (22) Vera Gonzalez Quevedo,R (2495)-Quesada Perez,Y (2546) Santa Clara 2008} 21. Qf6+ Kg8 22. Qg5+ Kh8 23. Qf6+ Kg8) 19. Qg5 $1 {[%emt 0:00:26]} Rxe3 {[%emt 0:00:04] [#]} 20. Bf3 $2 {[%emt 0:02:43]} ({Only move:} 20. Nxf5 $1 $18 Rxe2 21. Nh6+ Kg7 22. f5 Bxc4 23. fxg6 Rxg2+ 24. Kxg2 hxg6 25. Nf5+ Kf7 26. Ne7+ Ke8 27. Nxc6) 20... Qd8 {[%emt 0:01:10]} ({But not} 20... Qxc3 21. Nxf5 Rxf3 22. gxf3 $11) 21. Rfd1 {[%emt 0:06:17]} Qxg5 {[%emt 0:04:43]} 22. fxg5 {[%emt 0:00:02]} Bxc4 {[%emt 0:00:47]} 23. Rxd7 {[%emt 0:03:08]} Ne5 {[%emt 0:03:16]} 24. Rc7 {[%emt 0:00:30]} Nxf3+ {[%emt 0:00:55]} 25. gxf3 {[%emt 0:00:02]} Bd5 {[%emt 0:00:41]} 26. Rd1 {[%emt 0:04:13]} Bb3 {[%emt 0:04:21]} 27. Rdd7 {[%emt 0:01:50]} Rae8 $2 {[%emt 0:01:32]} (27... Rxc3 $11 28. Rxh7 Rd8) 28. Rxc5 $2 {[%emt 0:04:50]} (28. Rxh7 $18 Kf8 29. Rhg7 (29. Rxa7 Rxf3 30. Ra6 Bf7 $11)) 28... Rxf3 {[%emt 0:01:24]} 29. Rcc7 {[%emt 0:02:01]} Be6 {[%emt 0:16:00]} 30. Rxh7 {[%emt 0:06:53]} Bd5 {[%emt 0:09:53]} 31. Rcg7+ {[%emt 0:08:41]} Kf8 {[%emt 0:00:02]} 32. Rh8+ {[%emt 0:00:07]} Kxg7 {[%emt 0:00:05]} 33. Rxe8 {[%emt 0:00:03]} Rxc3 {[%emt 0:02:10]} 34. Re7+ {[%emt 0:00:06]} Kf8 {[%emt 0:00:28]} 35. Rxa7 {[%emt 0:00:05]} Rc2 {[%emt 0:02:16]} 36. Rd7 {[%emt 0:05:54]} Bf3 {[%emt 0:02:24]} 37. Rd3 {[%emt 0:04:54]} Bb7 {[%emt 0:00:49]} 38. Rd6 {[%emt 0:05:37]} Rg2+ {[%emt 0:07:12]} 39. Kf1 {[%emt 0:00:02]} Rxh2 $11 {[%emt 0:00:15]} 40. Rxg6 {[%emt 0:00:00]} Ra2 {[%emt 0:00:00]} 41. Rf6+ {[%emt 0:01:05]} Kg8 {[%emt 0:01:58]} 42. Nxf5 {[%emt 0:00:39]} Be4 {[%emt 0:01:13]} 43. Nd4 {[%emt 0:07:01]} Rxa3 {[%emt 0:00:50]} 44. Kf2 {[%emt 0:00:30]} Ra5 {[%emt 0:02:16]} 45. Ke3 {[%emt 0:00:31]} Rxg5 {[%emt 0:00:28]} 46. Kxe4 {[%emt 0:00:17]} Kg7 {[%emt 0:00:28]} 47. Ra6 {[%emt 0:00:29]} Rg1 {[%emt 0:00:12]} 48. Ne6+ {[%emt 0:01:53]} Kf6 {[%emt 0:00:11]} 49. Nf4+ {[%emt 0:00:05]} Ke7 {[%emt 0:00:16]} 50. Kf5 {[%emt 0:00:30]} Rf1 {[%emt 0:00:17]} 51. Ke5 {[%emt 0:00:54]} Re1+ {[%emt 0:00:06]} 52. Kd4 {[%emt 0:00:07]} Rd1+ {[%emt 0:00:38]} 53. Nd3 {[%emt 0:00:04]} Kd7 {[%emt 0:00:37]} 54. Kc4 {[%emt 0:00:10]} Ke7 {[%emt 0:00:08]} 55. Nf2 {[%emt 0:01:14]} Rd2 {[%emt 0:00:34]} 56. Ne4 {[%emt 0:00:13]} Rd1 {[%emt 0:00:04]} 57. Nc3 {[%emt 0:00:34]} Rc1 {[%emt 0:00:47]} 58. Kd4 {[%emt 0:00:08]} Kd7 {[%emt 0:00:07]} 59. Ra7+ {[%emt 0:01:09]} Ke6 {[%emt 0:00:33]} 60. Ra6+ {[%emt 0:00:13]} Kd7 {[%emt 0:00:04]} 61. Ne4 {[%emt 0:00:34]} Rd1+ {[%emt 0:00:10]} 62. Ke5 {[%emt 0:00:07]} Re1 {[%emt 0:00:14]} 1/2-1/2

[Event "Satka Autumn 2018"]
[Site "Satka"]
[Date "2018.09.14"]
[Round "4"]
[White "Mukhina, Jana"]
[Black "Sosnina, Nadezhda"]
[Result "1/2-1/2"]
[ECO "C74"]
[WhiteElo "2072"]
[BlackElo "1659"]
[Annotator "NA RC"]
[PlyCount "39"]
[EventDate "2018.09.11"]
[EventType "swiss"]
[EventCountry "RUS"]
[SourceTitle "playchess.com"]
[Source "ChessBase"]
[SourceQuality "1"]
[TimeControl "40/5400+30:1800+30"]

{[%evp 8,39,37,36,79,0,0,0,0,0,0,0,0,0,0,0,0,0,0,0,0,0,0,0,0,0,0,0,0,0,0,0,0,0]} 1. e4 {[%emt 0:00:00]} e5 {[%emt 0:00:00]} 2. Nf3 {[%emt 0:00:00]} Nc6 {[%emt 0:00:00]} 3. Bb5 {[%emt 0:00:00]} a6 {[%emt 0:00:00]} 4. Ba4 {[%emt 0:00:00]} d6 {[%emt 0:00:00]} 5. c3 {[%emt 0:00:48]} f5 {[%emt 0:00:00]} 6. d4 {[%emt 0:15:51]} (6. exf5 $1 $14 Bxf5 7. O-O) 6... fxe4 {[%emt 0:00:02]} 7. Nxe5 {[%emt 0:04:44]} dxe5 {[%emt 0:00:22]} 8. Qh5+ {[%emt 0:00:22]} Ke7 {[%emt 0:01:13] LiveBook: 5 Games} 9. Bxc6 {[%emt 0:11:02]} bxc6 {[%emt 0:00:10]} 10. Bg5+ {[%emt 0:00:40]} ({Avoid the trap} 10. Qxe5+ $2 Kf7 $19) 10... Nf6 {[%emt 0:00:17]} 11. dxe5 {[%emt 0:05:11]} Qd5 {[%emt 0:00:54]} 12. Bh4 $1 {[%emt 0:09:32]} Ke6 {[%emt 0:00:31]} 13. Bxf6 $1 {[%emt 0:06:44]} gxf6 {[%emt 0:00:10]} 14. Qe8+ {[%emt 0:00:28]} Kf5 {[%emt 0:01:54]} 15. Qh5+ {[%emt 0:00:10]} Ke6 {[%emt 0:00:16]} 16. Qe8+ {[%emt 0:00:21]} Kf5 {[%emt 0:00:05]} 17. Qh5+ {[%emt 0:11:26]} Ke6 {[%emt 0:00:11]} 18. Qe8+ {[%emt 0:00:06]} Kf5 {[%emt 0:00:08]} 19. Qh5+ {[%emt 0:00:06]} Ke6 $11 {[%emt 0:00:16]} 20. Qe8+ {[%emt 0:00:04]} 1/2-1/2

[Event "Satka Autumn 2018"]
[Site "Satka"]
[Date "2018.09.14"]
[Round "4"]
[White "Filippova, Darya"]
[Black "Charochkina, Daria"]
[Result "0-1"]
[ECO "A06"]
[WhiteElo "2061"]
[BlackElo "2336"]
[Annotator "NA"]
[PlyCount "70"]
[EventDate "2018.09.11"]
[EventType "swiss"]
[EventCountry "RUS"]
[SourceTitle "playchess.com"]
[Source "ChessBase"]
[SourceQuality "1"]
[TimeControl "40/5400+30:1800+30"]

{[%evp 8,62,14,2,3,0,10,0,4,0,12,0,2,0,24,38,22,21,28,18,11,27,47,37,32767,27,42,43,59,42,39,9,0,0,17,25,34,-42,0,-54,32767,32767,32767,32767,32767,32767,32767,16,0,19,32767,32767,32767,32767,32767,32767,-250]} 1. Nf3 {[%emt 0:00:00]} d5 {[%emt 0:00:00]} 2. e3 {[%emt 0:00:31]} Nf6 {[%emt 0:00:30]} 3. c4 {[%emt 0:00:27]} c6 {[%emt 0:00:05]} 4. Nc3 {[%emt 0:02:13]} e6 {[%emt 0:01:02]} 5. b3 {[%emt 0:01:15]} Nbd7 {[%emt 0:00:31]} 6. Qc2 {[%emt 0:01:45] A11: English Opening: 1...c6} Bd6 {[%emt 0:00:20]} 7. Be2 {[%emt 0:01:22]} O-O {[%emt 0:00:18]} 8. O-O {[%emt 0:01:06]} Qe7 {[%emt 0:00:45]} 9. Bb2 {[%emt 0:00:33]} Re8 {[%emt 0:05:52]} (9... b6 10. cxd5 cxd5 11. Nb5 Ba6 12. Qd1 Bxb5 13. Bxb5 a6 14. Be2 Ba3 15. Qc1 Bxb2 16. Qxb2 {½-½ (33) Ivanchuk,V (2728)-Duda,J (2707) Tbilisi 2017}) 10. Rac1 {[%emt 0:04:47] LiveBook: 4 Games} Nf8 {[%emt 0:05:19]} 11. d4 {[%emt 0:05:57]} Ng6 {[%emt 0:00:39]} 12. Rfd1 $146 {[%emt 0:04:03]} ({Predecessor:} 12. Bd3 b6 13. Rfe1 Bb7 14. e4 dxe4 15. Nxe4 Nxe4 16. Bxe4 Ba3 17. Bxa3 Qxa3 18. Ne5 Nxe5 19. Bxh7+ Kh8 20. dxe5 g6 21. Bxg6 fxg6 22. Qxg6 {1-0 (22) Voskanyan,V (2222)-Libersan,T (2090) Montreal 2015}) 12... b6 {[%emt 0:14:28]} 13. Na4 {[%emt 0:12:39]} Bb7 {[%emt 0:02:52]} 14. Ne5 {[%emt 0:04:56]} Bxe5 {[%emt 0:01:28]} 15. dxe5 {[%emt 0:00:10]} Nd7 {[%emt 0:00:04]} 16. f4 {[%emt 0:01:23]} f6 {[%emt 0:01:46]} 17. exf6 {[%emt 0:06:23]} Nxf6 {[%emt 0:00:17]} 18. Bd3 {[%emt 0:00:48]} Qf7 {[%emt 0:00:18]} 19. Rf1 {[%emt 0:03:51]} c5 {[%emt 0:02:22]} 20. Nc3 {[%emt 0:04:10]} Rad8 {[%emt 0:04:07]} 21. Rce1 {[%emt 0:05:49]} Nh4 {[%emt 0:06:07]} 22. Re2 {[%emt 0:10:14]} (22. cxd5 $11 exd5 23. g3) 22... Qh5 {[%emt 0:00:26]} 23. h3 {[%emt 0:01:20]} d4 {[%emt 0:08:39]} 24. exd4 {[%emt 0:01:30]} cxd4 {[%emt 0:00:25]} 25. Re5 {[%emt 0:05:36]} Qh6 {[%emt 0:01:46]} 26. Ne4 {[%emt 0:00:10]} Nf5 {[%emt 0:07:35]} 27. Ng5 $1 {[%emt 0:05:10]} Ne3 {[%emt 0:01:31] [#]} 28. Rxe3 $1 {[%emt 0:05:05]} dxe3 {[%emt 0:00:05]} 29. Qe2 {[%emt 0:01:26]} e5 {[%emt 0:04:23]} 30. fxe5 {[%emt 0:02:03]} Qxg5 {[%emt 0:00:05]} 31. exf6 {[%emt 0:00:11]} gxf6 $19 {[%emt 0:07:12]} 32. g4 {[%emt 0:04:13]} Qh4 {[%emt 0:01:14]} 33. Kh2 {[%emt 0:00:07]} Rxd3 {[%emt 0:00:04]} 34. Bxf6 {[%emt 0:00:54]} Qxf6 {[%emt 0:01:02]} 35. Qxd3 {[%emt 0:00:26]} Qe5+ {[%emt 0:00:08]} 0-1